bitfinex/quotes_SOLUSD_20241021
["timestamp","ask_amount","ask_price","bid_price","bid_amount"]
[1729550801964,3.55573938,167.95,167.89,30.975772]
[1729550802167,23.776884,167.99,167.86,20.0]
[1729550802364,23.776884,167.95,167.86,20.0]
[1729550802591,3.55590322,167.94,167.86,20.0]
[1729550802764,23.776884,167.95,167.86,20.0]
[1729550802964,3.55603879,167.94,167.86,20.0]
[1729550803166,23.776884,167.95,167.86,20.0]
[1729550803384,3.55636641,167.94,167.86,20.0]
[1729550803694,3.55636641,167.93,167.86,20.0]
[1729550803891,23.776884,167.95,167.86,20.0]
[1729550804086,8.00223849,167.94,167.86,20.0]
[1729550804392,3.55645778,167.93,167.86,20.0]
[1729550804595,23.776884,167.95,167.86,20.0]
[1729550804793,8.00254273,167.94,167.86,20.0]
[1729550805088,23.776884,167.96,167.86,20.0]
[1729550805261,23.776884,167.94,167.86,20.0]
[1729550805466,23.776884,167.92,167.86,20.0]
[1729550805696,14.8821,167.99,167.86,20.0]
[1729550805697,5.9538,167.96,167.86,20.0]
[1729550805891,31.77982175,167.95,167.86,20.0]
[1729550806086,3.5569763,167.94,167.86,20.0]
[1729550806390,3.5569763,167.93,167.86,20.0]
[1729550806566,23.776884,167.95,167.86,20.0]
[1729550806766,3.55710503,167.94,167.86,20.0]
[1729550806964,3.55710503,167.93,167.86,20.0]
[1729550807195,23.776884,167.95,167.86,20.0]
[1729550807379,8.00343109,167.94,167.86,20.0]
[1729550807688,23.776884,167.95,167.86,20.0]
[1729550808489,29.731184,167.95,167.86,20.0]
[1729550808692,8.00359208,167.94,167.86,20.0]
[1729550808896,23.776884,167.95,167.86,20.0]
[1729550809095,8.00358953,167.94,167.86,20.0]
[1729550809394,3.55702603,167.93,167.86,20.0]
[1729550809599,23.776884,167.95,167.86,20.0]
[1729550809799,8.00404508,167.94,167.86,20.0]
[1729550810098,23.776884,167.96,167.86,20.0]
[1729550810290,8.00409758,167.95,167.86,20.0]
[1729550810600,8.00409758,167.94,167.86,20.0]
[1729550810803,23.776884,167.96,167.86,20.0]
[1729550811101,8.00413575,167.95,167.86,37.04533648]
[1729550811392,3.55702721,167.94,167.86,37.04533648]
[1729550811575,23.776884,167.97,167.86,37.14533648]
[1729550811775,8.00407332,167.96,167.86,37.14533648]
[1729550811990,8.00407332,167.95,167.86,37.14533648]
[1729550812174,23.776884,167.97,167.86,37.14533648]
[1729550812175,3.55686395,167.94,167.86,37.14533648]
[1729550813095,23.776884,167.97,167.86,37.14533648]
[1729550813287,8.00464918,167.96,167.86,37.14533648]
[1729550813493,8.00464918,167.95,167.86,37.14533648]
[1729550813799,3.55690693,167.94,167.86,37.04533648]
[1729550814000,23.776884,167.97,167.86,37.04533648]
[1729550814205,8.00510257,167.96,167.86,37.04533648]
[1729550814387,8.00510257,167.95,167.86,37.04533648]
[1729550814588,3.55715855,167.94,167.86,20.2]
[1729550814787,0.6161677,168.01,167.93,20.0]
[1729550814990,8.00401572,168.0,167.93,20.0]
[1729550815203,8.00401572,167.99,167.93,20.0]
[1729550815383,8.00401572,167.98,167.93,20.0]
[1729550815579,0.6161677,168.01,167.93,20.0]
[1729550815793,3.5566752,168.0,167.93,20.0]
[1729550816008,3.5566752,167.99,167.93,36.1039]
[1729550816304,0.6161677,168.01,167.93,36.1039]
[1729550816497,3.55689488,168.0,167.93,36.1039]
[1729550816805,3.55689488,167.99,167.93,36.1039]
[1729550817002,0.6161677,168.01,167.93,36.1039]
[1729550817194,3.55715813,168.0,167.93,36.1039]
[1729550817505,3.55715813,167.99,167.93,36.1039]
[1729550817699,3.55715813,167.98,167.93,36.1039]
[1729550818001,0.6161677,168.01,167.93,36.1039]
[1729550818202,3.55752701,168.0,167.93,36.1039]
[1729550818403,3.55752701,167.99,167.93,36.1039]
[1729550818602,0.6161677,168.01,167.93,36.1039]
[1729550818904,3.55743422,168.0,167.93,36.1039]
[1729550819278,3.55743422,167.99,167.93,36.1039]
[1729550819500,0.6161677,168.01,167.93,36.1039]
[1729550819780,3.55766033,168.0,167.93,36.1039]
[1729550820005,3.55766033,167.99,167.93,36.1039]
[1729550820305,0.6161677,168.01,167.93,36.1039]
[1729550820501,3.55804611,168.0,167.93,36.1039]
[1729550820703,3.55804611,167.99,167.93,36.1039]
[1729550820904,0.6161677,168.01,167.93,36.1039]
[1729550821115,3.55806333,168.0,167.93,36.1039]
[1729550821291,3.55855631,167.99,167.93,36.1039]
[1729550821705,0.6161677,168.01,167.93,36.1039]
[1729550821883,3.5583438,168.0,167.93,36.1039]
[1729550822212,3.5583438,167.99,167.93,36.1039]
[1729550822507,3.5583438,167.98,167.93,36.1039]
[1729550822710,0.6161677,168.01,167.93,36.1039]
[1729550822895,3.55867754,168.0,167.93,36.1039]
[1729550823111,3.55867754,167.99,167.93,36.1039]
[1729550823311,3.55867754,167.98,167.93,36.1039]
[1729550823530,0.6161677,168.01,167.93,36.1039]
[1729550823828,27.33556445,168.0,167.93,36.1039]
[1729550824001,3.55868045,167.99,167.93,36.1039]
[1729550824199,3.55868045,167.98,167.93,36.1039]
[1729550824436,23.776884,168.0,167.93,36.1039]
[1729550824605,3.55885764,167.99,167.93,36.1039]
[1729550824934,3.55885764,167.98,167.93,36.1039]
[1729550825112,3.55885764,167.97,167.93,36.1039]
[1729550825315,23.776884,168.0,167.93,36.1039]
[1729550825630,3.55917487,167.99,167.93,36.1039]
[1729550825815,3.55917487,167.98,167.93,36.1039]
[1729550826017,3.55917487,167.97,167.93,36.1039]
[1729550826316,29.729284,168.0,167.93,36.1039]
[1729550826525,3.55922307,167.99,167.93,36.1039]
[1729550826833,3.55922307,167.98,167.93,36.1039]
[1729550827022,3.55922307,167.97,167.93,36.1039]
[1729550827233,29.729284,168.0,167.93,36.1039]
[1729550827526,3.55917966,167.99,167.93,36.1039]
[1729550827733,3.55917966,167.98,167.93,36.1039]
[1729550827904,3.55917966,167.97,167.93,36.1039]
[1729550828108,29.729284,168.0,167.93,36.1039]
[1729550828405,3.55906722,167.99,167.93,36.1039]
[1729550828606,3.55906722,167.98,167.93,36.1039]
[1729550828830,3.55906722,167.97,167.93,36.1039]
[1729550829129,29.729284,168.0,167.93,36.1039]
[1729550829304,3.55923673,167.99,167.93,36.1039]
[1729550829504,3.55923673,167.98,167.93,36.1039]
[1729550829811,3.55923673,167.97,167.93,36.1039]
[1729550830019,29.729284,168.0,167.93,36.1039]
[1729550830216,3.55919247,167.99,167.93,36.1039]
[1729550830420,3.55919247,167.98,167.93,36.1039]
[1729550830635,3.55919247,167.97,167.93,36.1039]
[1729550830810,29.729284,168.0,167.93,36.1039]
[1729550831009,3.55919247,167.99,167.93,36.1039]
[1729550831309,3.55919247,167.98,167.93,36.1039]
[1729550831500,3.55919247,167.97,167.93,36.1039]
[1729550831701,29.729284,168.0,167.93,36.1039]
[1729550831903,3.55932927,167.99,167.93,36.1039]
[1729550832512,3.55932927,167.98,167.93,36.1039]
[1729550833411,3.55932927,167.97,167.93,36.1039]
[1729550833625,29.729284,168.0,167.93,36.1039]
[1729550833812,3.55958432,167.99,167.93,47.00607679]
[1729550834006,3.55958432,167.98,167.93,47.00607679]
[1729550834346,23.776884,168.0,167.93,47.00607679]
[1729550834500,3.55964779,167.99,167.93,47.00607679]
[1729550834705,3.55964779,167.98,167.93,47.00607679]
[1729550834909,23.776884,168.0,167.93,47.00607679]
[1729550835134,3.55964433,167.99,167.93,47.00607679]
[1729550835436,3.55964433,167.98,167.93,47.00607679]
[1729550835616,3.55964433,167.97,167.93,47.00607679]
[1729550835804,23.776884,168.0,167.93,47.00607679]
[1729550836007,3.55985196,167.99,167.93,47.00607679]
[1729550836306,3.55985196,167.98,167.93,47.00607679]
[1729550836509,23.776884,168.0,167.93,47.00607679]
[1729550836708,3.56012438,167.99,167.93,47.00607679]
[1729550836931,3.56012438,167.98,167.93,47.00607679]
[1729550837123,23.776884,168.0,167.93,47.00607679]
[1729550837317,3.56043895,167.99,167.93,47.00607679]
[1729550837515,3.56043895,167.98,167.93,47.00607679]
[1729550837715,23.776884,168.0,167.93,47.00607679]
[1729550837915,3.56043895,167.99,167.93,47.00607679]
[1729550838129,3.56043895,167.98,167.93,47.00607679]
[1729550838335,3.56043895,167.97,167.93,47.00607679]
[1729550838519,23.776884,168.0,167.93,47.00607679]
[1729550838710,3.5608449,167.99,167.93,47.00607679]
[1729550839031,3.5608449,167.98,167.93,47.00607679]
[1729550839241,3.5608449,167.97,167.93,47.00607679]
[1729550839429,23.776884,168.0,167.93,47.00607679]
[1729550839610,3.56190035,167.99,167.93,47.00607679]
[1729550839814,3.56190035,167.98,167.93,47.00607679]
[1729550840122,3.56190035,167.97,167.93,47.00607679]
[1729550840329,23.776884,168.0,167.93,47.00607679]
[1729550840638,3.5628523,167.99,167.93,47.00607679]
[1729550840832,3.5628523,167.98,167.93,47.00607679]
[1729550841040,3.5628523,167.97,167.93,47.00607679]
[1729550841335,23.776884,168.0,167.93,47.00607679]
[1729550841514,3.56282782,167.99,167.93,47.00607679]
[1729550841714,3.56282782,167.98,167.93,47.00607679]
[1729550841922,3.56282782,167.97,167.93,47.00607679]
[1729550842124,23.776884,168.0,167.93,47.00607679]
[1729550842322,23.776884,167.98,167.91,20.0]
[1729550842525,3.56291952,167.97,167.91,20.0]
[1729550842723,3.56291952,167.96,167.91,20.0]
[1729550842936,27.34030721,167.95,167.91,20.0]
[1729550843242,3.56342321,167.94,167.91,20.0]
[1729550843616,3.56342321,167.93,167.91,20.0]
[1729550843830,23.776884,167.96,167.91,20.0]
[1729550844117,3.56378146,167.95,167.91,20.0]
[1729550844320,3.56378146,167.94,167.91,20.0]
[1729550844633,3.56378146,167.93,167.91,20.0]
[1729550844833,23.776884,167.97,167.91,20.0]
[1729550845138,3.56361703,167.96,167.91,20.0]
[1729550845333,3.56361703,167.95,167.91,20.0]
[1729550845546,3.56361703,167.94,167.91,20.0]
[1729550845717,3.56361703,167.93,167.91,20.0]
[1729550845919,23.776884,167.97,167.91,20.0]
[1729550846136,3.56367616,167.96,167.91,20.0]
[1729550846314,3.56367616,167.95,167.91,20.0]
[1729550846635,3.56372542,167.94,167.91,20.0]
[1729550846831,3.56372542,167.93,167.91,20.0]
[1729550847046,23.776884,167.96,167.9,6.19432338]
[1729550847244,23.776884,167.91,167.9,6.19432338]
[1729550847443,33.29698016,167.91,167.84,16.5899]
[1729550847642,3.56439616,167.9,167.84,22.78699884]
[1729550847836,29.732584,167.91,167.84,16.5899]
[1729550848041,3.56471156,167.9,167.84,16.5899]
[1729550848244,3.56471156,167.89,167.84,16.5899]
[1729550848434,5.9542,167.95,167.84,27.49207679]
[1729550848630,31.79524312,167.94,167.86,10.90217679]
[1729550848836,3.56370289,167.93,167.86,10.90217679]
[1729550849038,3.56370289,167.92,167.86,10.90217679]
[1729550849256,3.56370289,167.91,167.86,10.90217679]
[1729550849451,23.776884,167.94,167.87,20.0]
[1729550849754,3.56308002,167.93,167.87,20.0]
[1729550849954,3.56308002,167.92,167.87,20.0]
[1729550850626,3.56308002,167.91,167.87,20.0]
[1729550850830,23.776884,167.94,167.85,20.0]
[1729550851032,3.5627134,167.93,167.85,20.0]
[1729550851240,3.5627134,167.92,167.85,20.0]
[1729550851450,3.5627134,167.91,167.85,20.0]
[1729550851653,23.776884,167.94,167.85,20.0]
[1729550851837,3.56224287,167.93,167.85,20.0]
[1729550852041,3.56224287,167.92,167.85,20.0]
[1729550852234,3.56224287,167.91,167.85,20.0]
[1729550852428,23.776884,167.94,167.85,20.0]
[1729550852638,3.56190569,167.93,167.85,20.0]
[1729550852847,3.56190569,167.92,167.85,20.0]
[1729550853050,3.56190569,167.91,167.85,20.0]
[1729550853258,29.731584,167.94,167.85,20.0]
[1729550853435,23.776884,167.92,167.85,20.0]
[1729550853947,3.56155397,167.91,167.87,20.0]
[1729550854259,23.776884,167.95,167.88,10.90217679]
[1729550854568,3.56064916,167.94,167.9,10.90217679]
[1729550854738,3.56064916,167.93,167.91,20.0]
[1729550855068,12.0848,167.99,167.91,20.0]
[1729550855365,8.01117649,167.98,167.91,20.0]
[1729550855548,3.56052556,167.97,167.91,20.0]
[1729550855736,3.56052556,167.96,167.91,20.0]
[1729550856034,3.56052556,167.95,167.91,20.0]
[1729550856234,3.56052556,167.94,167.91,20.0]
[1729550856461,23.776884,167.98,167.91,20.0]
[1729550856655,3.56048649,167.97,167.91,20.0]
[1729550856859,3.56048649,167.96,167.91,20.0]
[1729550857165,3.56048649,167.95,167.91,20.0]
[1729550857349,23.776884,167.98,167.91,20.0]
[1729550857557,3.56053935,167.94,167.91,20.0]
[1729550857761,23.776884,167.98,167.91,20.0]
[1729550858061,3.56054015,167.97,167.91,20.0]
[1729550858570,3.56054015,167.96,167.91,20.0]
[1729550858860,3.56054015,167.95,167.91,20.0]
[1729550859071,3.56054015,167.94,167.91,20.0]
[1729550859259,23.776884,167.98,167.91,20.0]
[1729550859459,3.56049201,167.97,167.91,20.0]
[1729550859660,3.56049201,167.96,167.91,20.0]
[1729550859969,3.56049201,167.95,167.91,20.0]
[1729550860177,3.56039803,167.94,167.91,20.0]
[1729550860359,23.776884,167.98,167.91,20.0]
[1729550860546,3.56047974,167.97,167.91,20.0]
[1729550860947,3.56047974,167.96,167.91,20.0]
[1729550861145,3.56047974,167.95,167.91,20.0]
[1729550861346,3.56047974,167.94,167.89,20.0]
[1729550861570,3.56047974,167.93,167.87,20.0]
[1729550861771,3.56047974,167.93,167.85,6.19537648]
[1729550861772,23.776884,167.94,167.86,30.90217679]
[1729550861950,3.56067132,167.93,167.86,30.90217679]
[1729550862152,23.776884,167.94,167.86,30.90217679]
[1729550862153,3.56067132,167.92,167.86,30.90217679]
[1729550862445,23.776884,167.94,167.86,30.90217679]
[1729550862652,3.56059491,167.93,167.86,30.90217679]
[1729550862859,3.56059491,167.92,167.86,30.90217679]
[1729550863055,23.776884,167.94,167.86,30.90217679]
[1729550863269,3.56055164,167.93,167.86,30.90217679]
[1729550863471,3.56055164,167.92,167.86,30.90217679]
[1729550863675,23.776884,167.94,167.86,30.90217679]
[1729550863851,3.56054794,167.93,167.86,30.90217679]
[1729550864169,3.56054794,167.92,167.86,30.90217679]
[1729550864374,23.776884,167.94,167.86,30.90217679]
[1729550864877,3.56048086,167.93,167.86,30.90217679]
[1729550865052,3.56048086,167.92,167.86,30.90217679]
[1729550865377,23.776884,167.94,167.86,30.90217679]
[1729550865669,3.56052475,167.93,167.86,30.90217679]
[1729550866170,3.56052475,167.92,167.86,30.90217679]
[1729550866359,23.776884,167.98,167.89,20.0]
[1729550866563,23.776884,167.96,167.91,20.0]
[1729550866758,3.56046857,167.95,167.91,20.0]
[1729550866959,3.56046857,167.94,167.91,20.0]
[1729550867175,3.56046857,167.93,167.91,20.0]
[1729550867469,23.776884,167.98,167.91,20.0]
[1729550867675,6.1321,167.99,167.91,20.0]
[1729550867676,3.56021327,167.97,167.91,20.0]
[1729550867874,6.1321,167.99,167.91,20.0]
[1729550867875,3.56021327,167.96,167.91,20.0]
[1729550868082,3.56021327,167.95,167.91,20.0]
[1729550868577,6.1321,167.99,167.91,20.0]
[1729550868791,3.56030664,167.98,167.91,20.0]
[1729550868960,3.56030664,167.97,167.91,20.0]
[1729550869159,3.56030664,167.96,167.91,20.0]
[1729550869360,3.56030664,167.95,167.91,20.0]
[1729550869880,23.776884,167.98,167.91,20.0]
[1729550870190,3.56055057,167.97,167.91,20.0]
[1729550870385,3.56055057,167.96,167.91,20.0]
[1729550870587,3.56055057,167.95,167.91,20.0]
[1729550870773,23.776884,167.98,167.91,20.0]
[1729550871090,3.5607492,167.97,167.91,20.0]
[1729550871385,3.5607492,167.96,167.92,10.90217679]
[1729550871590,23.776884,168.0,167.94,10.90217679]
[1729550871808,3.56057426,167.99,167.94,10.90217679]
[1729550871976,3.56057426,167.98,167.94,10.90217679]
[1729550872166,3.56057426,167.97,167.94,10.90217679]
[1729550872362,23.776884,168.0,167.94,10.90217679]
[1729550872564,3.56036393,167.99,167.94,10.90217679]
[1729550872766,3.56036393,167.98,167.94,10.90217679]
[1729550873065,23.776884,168.0,167.94,10.90217679]
[1729550873265,3.56022936,167.99,167.94,10.90217679]
[1729550873482,3.56022936,167.98,167.94,10.90217679]
[1729550873784,23.776884,168.0,167.94,10.90217679]
[1729550874080,3.5602259,167.99,167.94,10.90217679]
[1729550874271,23.776884,168.0,167.94,10.90217679]
[1729550874272,3.5602259,167.98,167.94,10.90217679]
[1729550874469,23.776884,168.0,167.94,10.90217679]
[1729550874682,3.56006418,167.99,167.95,20.0]
[1729550874875,3.56006418,167.98,167.95,20.0]
[1729550875064,23.776884,168.0,167.95,20.0]
[1729550875264,3.55987196,167.99,167.95,20.0]
[1729550875466,23.776884,168.0,167.95,20.0]
[1729550875672,3.55987276,167.98,167.95,20.0]
[1729550875876,23.776884,168.0,167.95,20.0]
[1729550876178,3.55987357,167.99,167.95,20.0]
[1729550876380,3.55987357,167.98,167.95,20.0]
[1729550876680,23.776884,168.0,167.95,20.0]
[1729550876884,3.55970884,167.99,167.95,20.0]
[1729550877070,3.55970884,167.98,167.95,20.0]
[1729550877270,23.776884,168.0,167.95,20.0]
[1729550877472,3.559552,167.99,167.95,20.0]
[1729550877777,3.559552,167.98,167.95,20.0]
[1729550877978,23.776884,168.0,167.95,20.0]
[1729550878289,3.55955038,167.99,167.95,20.0]
[1729550878477,3.55955038,167.98,167.95,20.0]
[1729550878672,0.6161677,168.01,167.95,20.0]
[1729550878862,3.55937111,168.0,167.95,20.0]
[1729550879064,3.55937111,167.99,167.95,20.0]
[1729550879268,0.6161677,168.01,167.95,20.0]
[1729550879469,3.55921643,167.98,167.95,20.0]
[1729550879674,0.6161677,168.01,167.95,20.0]
[1729550879875,3.55921724,168.0,167.95,20.0]
[1729550880174,3.55921724,167.99,167.95,20.0]
[1729550880386,3.55921724,167.98,167.95,20.0]
[1729550880711,0.6161677,168.01,167.95,20.0]
[1729550880989,3.55921778,168.0,167.95,20.0]
[1729550881174,3.55921778,167.99,167.95,20.0]
[1729550881379,3.55921778,167.98,167.95,20.0]
[1729550881579,0.6161677,168.01,167.95,20.0]
[1729550881879,3.55909738,168.0,167.95,20.0]
[1729550882193,3.55909738,167.99,167.95,20.0]
[1729550882395,3.55909738,167.98,167.95,20.0]
[1729550882694,0.6161677,168.01,167.95,20.0]
[1729550882894,3.55904993,168.0,167.95,20.0]
[1729550883104,3.55904993,167.99,167.95,20.0]
[1729550883309,3.55904993,167.98,167.95,20.0]
[1729550883506,0.6161677,168.01,167.95,20.0]
[1729550883802,3.55900899,168.0,167.95,20.0]
[1729550883992,3.55900899,167.99,167.95,20.0]
[1729550884202,3.55900899,167.98,167.95,20.0]
[1729550884381,0.6161677,168.01,167.95,20.0]
[1729550884580,3.55897392,168.0,167.95,20.0]
[1729550884784,3.55897392,167.99,167.95,20.0]
[1729550885014,0.6161677,168.01,167.95,20.0]
[1729550885313,3.55875124,168.0,167.95,20.0]
[1729550885611,3.55875124,167.99,167.95,20.0]
[1729550885814,0.6161677,168.01,167.96,10.90217679]
[1729550886112,3.55856954,168.0,167.96,10.90217679]
[1729550886288,3.55856954,167.99,167.96,10.90217679]
[1729550886485,0.6161677,168.01,167.96,10.90217679]
[1729550886703,3.55835324,168.0,167.97,20.0]
[1729550886904,3.55835324,167.99,167.97,20.0]
[1729550887106,0.6161677,168.01,167.97,20.0]
[1729550887407,3.55808708,168.0,167.98,10.90217679]
[1729550887603,0.6161677,168.01,167.99,20.0]
[1729550887818,0.6161677,168.01,168.0,30.90217679]
[1729550892709,0.6161677,168.01,167.97,20.0]
[1729550892907,0.6161677,168.01,167.97,30.90217679]
[1729550893097,0.6161677,168.01,168.0,20.0]
[1729550904035,0.6161677,168.01,167.97,20.0]
[1729550904210,0.6161677,168.01,168.0,20.0]
[1729550909135,0.6161677,168.01,167.97,20.0]
[1729550909435,0.6161677,168.01,167.95,22.64824042]
[1729550909436,23.776884,168.0,167.95,6.21484042]
[1729550910131,3.55607805,167.99,167.95,6.21484042]
[1729550910308,0.6161677,168.01,167.95,6.21484042]
[1729550911034,3.55623588,168.0,167.95,6.21484042]
[1729550911213,3.55623588,167.99,167.96,20.0]
[1729550911416,0.6161677,168.01,167.96,20.0]
[1729550911629,3.55758147,168.0,167.96,20.0]
[1729550911816,3.55758147,167.99,167.96,20.0]
[1729550912010,0.6161677,168.01,167.96,20.0]
[1729550912223,3.55904454,168.0,167.96,20.0]
[1729550912511,3.55904454,167.99,167.96,20.0]
[1729550912711,0.6161677,168.01,167.96,20.0]
[1729550913111,3.55904616,168.0,167.96,20.0]
[1729550913311,3.55904616,167.99,167.96,20.0]
[1729550913537,3.55904616,167.98,167.96,20.0]
[1729550913724,0.6161677,168.01,167.96,20.0]
[1729550913923,3.56048325,168.0,167.96,20.0]
[1729550914122,3.56048325,167.99,167.96,20.0]
[1729550914426,3.56048325,167.98,167.96,20.0]
[1729550914619,0.6161677,168.01,167.96,20.0]
[1729550914817,3.56118721,168.0,167.96,20.0]
[1729550915018,3.56118721,167.99,167.96,20.0]
[1729550915219,3.56118721,167.98,167.96,20.0]
[1729550915419,23.776884,168.0,167.96,20.0]
[1729550915618,3.56180701,167.99,167.95,6.21484042]
[1729550915824,3.56180701,167.98,167.96,20.0]
[1729550916026,23.776884,168.0,167.96,20.0]
[1729550916231,3.56235202,167.99,167.96,20.0]
[1729550916538,3.56235202,167.98,167.96,20.0]
[1729550916916,23.776884,168.0,167.96,20.0]
[1729550917635,3.56240335,167.99,167.96,20.0]
[1729550917842,0.6161677,168.01,167.96,20.0]
[1729550918021,3.56256443,168.0,167.96,20.0]
[1729550918224,0.6161677,168.01,167.96,20.0]
[1729550918545,3.56272964,168.0,167.96,20.0]
[1729550918738,0.6161677,168.01,167.96,20.0]
[1729550918917,3.56277683,168.0,167.96,20.0]
[1729550919241,3.5630241,167.99,167.96,20.0]
[1729550919432,0.6161677,168.01,167.96,20.0]
[1729550919636,3.56305768,168.0,167.96,20.0]
[1729550919832,3.56305768,167.99,167.96,20.0]
[1729550920140,0.6161677,168.01,167.96,30.90217679]
[1729550920613,0.6161677,168.01,167.99,20.0]
[1729550921236,0.6161677,168.01,168.0,30.90217679]
[1729550931824,0.6161677,168.01,168.0,31.00217679]
[1729550932341,0.6161677,168.01,168.0,31.10217679]
[1729550933648,0.6161677,168.01,168.0,31.00217679]
[1729550933831,0.6161677,168.01,168.0,31.10217679]
[1729550938248,6.444,168.15,168.04,20.0]
[1729550938455,6.444,168.15,168.09,20.0]
[1729550938456,3.55180473,168.14,168.09,20.0]
[1729550938630,6.444,168.15,168.09,20.0]
[1729550938631,3.55180473,168.13,168.09,20.0]
[1729550938831,6.444,168.15,168.09,20.0]
[1729550939044,3.55155878,168.14,168.09,20.0]
[1729550939241,6.444,168.15,168.1,10.90217679]
[1729550939448,23.776884,168.14,168.04,20.0]
[1729550939649,23.776884,168.14,168.04,30.90217679]
[1729550943359,23.776884,168.14,168.06,10.90217679]
[1729550943545,23.776884,168.14,168.07,20.0]
[1729550944258,23.776884,168.12,168.02,20.0]
[1729550944462,23.776884,168.12,168.01,10.90217679]
[1729550944650,23.776884,168.12,168.05,10.90217679]
[1729550945354,23.776884,168.12,168.03,10.90217679]
[1729550945542,23.776884,168.12,168.04,20.0]
[1729550945943,21.5379,168.13,168.06,20.0]
[1729550946267,15.2168,168.13,168.06,20.0]
[1729550947958,23.776884,168.16,168.09,10.90217679]
[1729550948336,6.9372677,168.17,168.11,10.90217679]
[1729550948537,0.6161677,168.17,168.16,20.0]
[1729550948754,0.6161677,168.17,168.16,30.90217679]
[1729550964265,0.6161677,168.17,168.16,46.65807679]
[1729550965358,0.6161677,168.17,168.14,20.0]
[1729550965566,0.6161677,168.17,168.15,10.90217679]
[1729550965764,0.6161677,168.17,168.16,20.0]
[1729550972883,0.6161677,168.17,168.16,43.876884]
[1729550973968,0.6161677,168.17,168.15,20.0]
[1729550974168,0.6161677,168.17,168.16,30.90217679]
[1729550977287,0.6161677,168.17,168.13,21.6946]
[1729550977588,0.6161677,168.17,168.14,10.90217679]
[1729550977771,0.6161677,168.17,168.16,10.90217679]
[1729550978695,0.6161677,168.17,168.16,30.90217679]
[1729550993589,0.6161677,168.17,168.14,20.0]
[1729550994293,0.6161677,168.17,168.13,6.17805786]
[1729550994487,0.6161677,168.17,168.14,10.90217679]
[1729550994690,0.6161677,168.17,168.16,10.90217679]
[1729550995281,0.6161677,168.17,168.16,30.90217679]
[1729550997687,0.6161677,168.17,168.14,20.0]
[1729550997977,0.6161677,168.17,168.16,30.90217679]
[1729550998187,0.6161677,168.17,168.11,6.6118]
[1729550998388,0.6161677,168.17,168.1,7.94176571]
[1729550998592,0.6161677,168.17,168.12,10.90217679]
[1729550999599,0.6161677,168.17,168.14,10.90217679]
[1729550999803,0.6161677,168.17,168.15,20.0]
[1729551003298,0.6161677,168.17,168.13,20.0]
[1729551003684,0.6161677,168.17,168.13,30.90217679]
[1729551005283,0.6161677,168.17,168.12,6.17552886]
[1729551005485,0.6161677,168.17,168.12,17.07770565]
[1729551006505,0.6161677,168.17,168.12,6.17552886]
[1729551006703,0.6161677,168.17,168.13,20.0]
[1729551008600,0.6161677,168.17,168.12,6.17552886]
[1729551009109,0.6161677,168.17,168.08,26.16292096]
[1729551009493,0.6161677,168.17,168.08,6.16292096]
[1729551010007,23.776884,168.16,168.08,6.16292096]
[1729551010208,30.133484,168.16,168.08,6.16292096]
[1729551011814,30.133484,168.16,168.09,20.0]
[1729551012719,23.776884,168.14,168.03,10.90217679]
[1729551013218,23.776884,168.11,168.02,6.16572947]
[1729551013523,29.726184,168.09,168.02,6.16572947]
[1729551013699,23.776884,168.1,167.97,26.76627679]
[1729551013894,5.9492,168.09,167.96,6.1670118]
[1729551014119,29.726384,168.08,167.96,6.1670118]
[1729551014305,6.3566,168.1,167.98,17.01948285]
[1729551015304,6.3566,168.1,167.99,20.0]
[1729551015506,23.776884,168.09,167.99,20.0]
[1729551016603,23.776884,168.09,167.97,20.0]
[1729551016812,23.776884,168.09,167.97,37.01948285]
[1729551018823,23.776884,168.09,168.0,20.0]
[1729551018996,23.776884,168.09,168.01,17.01948285]
[1729551019201,6.3566,168.1,168.02,20.0]
[1729551019525,15.595,168.12,168.06,20.0]
[1729551019824,6.0634,168.14,168.08,20.0]
[1729551020806,23.776884,168.13,168.08,20.0]